bitfinex/quotes_SOLUSD_20240816
["timestamp","ask_amount","ask_price","bid_price","bid_amount"]
[1723810046430,7.0121,142.61,142.54,20.0]
[1723810046935,45.25098,142.6,142.54,20.0]
[1723810047154,45.0,142.6,142.54,20.0]
[1723810047959,45.12549,142.61,142.54,20.0]
[1723810048536,7.0113,142.63,142.54,46.45]
[1723810048827,7.31646884,142.65,142.55,20.0]
[1723810049159,7.31646884,142.65,142.54,46.45]
[1723810049160,7.0111,142.63,142.54,46.45]
[1723810049459,7.0103,142.65,142.57,16.5038]
[1723810049960,1.34522353,142.64,142.57,16.5038]
[1723810050126,1.21973353,142.64,142.57,16.5038]
[1723810050326,1.21973353,142.64,142.58,1.40249801]
[1723810050556,1.21973353,142.64,142.59,7.64523258]
[1723810050861,1.21973353,142.64,142.59,76.70998372]
[1723810052745,0.25098,142.63,142.59,76.70998372]
[1723810053159,45.25098,142.63,142.59,76.70998372]
[1723810054457,0.25098,142.63,142.59,76.70998372]
[1723810055957,0.12549,142.63,142.59,76.70998372]
[1723810056270,1.21973353,142.64,142.59,76.70998372]
[1723810058840,45.0,142.65,142.59,76.70998372]
[1723810059035,46.21962967,142.65,142.59,76.70998372]
[1723810060664,1.21962967,142.65,142.59,76.70998372]
[1723810062769,0.37647,142.64,142.59,76.70998372]
[1723810063963,45.0,142.64,142.59,76.70998372]
[1723810069868,1.21962967,142.65,142.59,87.28998372]
[1723810070778,1.21962967,142.65,142.6,20.0]
[1723810071450,1.21962967,142.65,142.6,40.0]
[1723810071774,1.21962967,142.65,142.61,11.98215479]
[1723810071960,1.21962967,142.65,142.61,10.58]
[1723810072761,1.21962967,142.65,142.62,16.4442]
[1723810073170,1.21962967,142.65,142.62,17.84635403]
[1723810074377,2.06472572,142.68,142.62,17.84635403]
[1723810074563,47.06472572,142.68,142.62,17.84635403]
[1723810075161,2.06472572,142.68,142.63,36.8919]
[1723810075361,0.8453449,142.68,142.63,36.8919]
[1723810075570,0.8453449,142.68,142.64,1.40181132]
[1723810075759,0.8453449,142.68,142.64,21.40181132]
[1723810075960,0.8453449,142.68,142.65,1.40179022]
[1723810076561,0.8453449,142.68,142.64,20.0]
[1723810077960,0.8453449,142.68,142.65,30.58]
[1723810078686,0.8453449,142.68,142.66,1.40168307]
[1723810078895,0.8453449,142.68,142.65,30.58]
[1723810079764,0.8453449,142.68,142.66,22.285]
[1723810079957,0.8453449,142.68,142.66,23.68666193]
[1723810080499,0.8453449,142.68,142.66,42.285]
[1723810080660,0.8453449,142.68,142.67,20.0]
[1723810081894,0.8453449,142.68,142.67,21.40152984]
[1723810082384,0.8453449,142.68,142.67,20.0]
[1723810082589,0.8453449,142.68,142.67,30.58]
[1723810084074,0.8453449,142.68,142.67,20.0]
[1723810084699,0.8453449,142.68,142.67,40.0]
[1723810084904,0.8453449,142.68,142.67,20.0]
[1723810086202,0.8453449,142.68,142.67,40.0]
[1723810086784,0.8453449,142.68,142.67,20.0]
[1723810093903,0.8453449,142.68,142.62,21.5044]
[1723810094994,0.8453449,142.68,142.62,32.0844]
[1723810095513,0.8453449,142.68,142.64,10.58]
[1723810095894,0.8453449,142.68,142.65,20.0]
[1723810096222,0.8453449,142.68,142.63,40.0]
[1723810096886,0.8453449,142.68,142.65,30.58]
[1723810097082,0.8453449,142.68,142.66,20.0]
[1723810097491,0.8453449,142.68,142.67,10.58]
[1723810097713,0.8453449,142.68,142.67,30.58]
[1723810100393,0.8453449,142.68,142.67,53.2288]
[1723810100816,0.8453449,142.68,142.67,53.47978]
[1723810102719,0.8453449,142.68,142.67,53.73076]
[1723810103015,0.8453449,142.68,142.67,43.15076]
[1723810103387,7.30868964,142.78,142.69,20.0]
[1723810103590,15.184,142.79,142.71,30.58]
[1723810103795,15.184,142.79,142.72,20.0]
[1723810105691,45.0,142.78,142.72,20.0]
[1723810106125,7.3072486,142.81,142.75,20.0]
[1723810106428,0.8453449,142.82,142.76,20.25098]
[1723810106605,0.8453449,142.82,142.76,20.0]
[1723810107125,0.8453449,142.82,142.77,20.0]
[1723810107330,0.8453449,142.82,142.78,30.58]
[1723810107632,0.8453449,142.82,142.78,10.58]
[1723810112926,0.8453449,142.82,142.76,30.58]
[1723810114327,0.12549,142.81,142.73,23.039]
[1723810114518,0.37647,142.81,142.73,23.039]
[1723810114721,45.0,142.81,142.73,23.039]
[1723810115036,45.8453449,142.82,142.73,43.039]
[1723810115207,45.0,142.81,142.73,43.039]
[1723810115407,0.12549,142.81,142.74,10.58]
[1723810115830,0.8453449,142.82,142.76,10.58]
[1723810116021,0.8453449,142.82,142.75,20.0]
[1723810116802,0.8453449,142.82,142.74,26.39]
[1723810117028,0.8453449,142.82,142.75,20.0]
[1723810118437,0.8453449,142.82,142.75,40.0]
[1723810119433,0.8453449,142.82,142.75,20.0]
[1723810122839,0.8453449,142.82,142.75,40.0]
[1723810123521,0.8453449,142.82,142.75,20.0]
[1723810125549,0.25098,142.81,142.75,20.0]
[1723810125718,0.37647,142.81,142.74,20.0]
[1723810125918,7.37877,142.81,142.74,20.0]
[1723810126142,0.12549,142.79,142.69,66.39]
[1723810126346,7.37977,142.79,142.69,48.2797]
[1723810126522,45.0,142.78,142.69,48.2797]
[1723810126711,0.25098,142.77,142.69,48.2797]
[1723810126912,0.25098,142.77,142.69,68.2797]
[1723810127642,0.12549,142.77,142.69,68.2797]
[1723810127814,46.21702492,142.78,142.71,46.39]
[1723810128012,1.21702492,142.78,142.71,46.39]
[1723810128738,16.1625,142.8,142.71,46.39]
[1723810128940,7.30617275,142.78,142.71,46.39]
[1723810129251,7.30617275,142.78,142.72,20.0]
[1723810129768,45.0,142.77,142.72,20.0]
[1723810130337,45.0,142.77,142.7,40.0]
[1723810131141,45.0,142.77,142.7,20.0]
[1723810132236,45.0,142.77,142.7,40.0]
[1723810132432,45.0,142.77,142.71,26.39]
[1723810132631,45.0,142.77,142.72,40.0]
[1723810133038,7.30617275,142.78,142.72,20.0]
[1723810133230,6.80617275,142.78,142.72,20.0]
[1723810134047,0.12549,142.77,142.72,20.0]
[1723810134222,45.25098,142.77,142.7,20.0]
[1723810136039,52.25528,142.77,142.69,21.8897]
[1723810137845,62.82528,142.77,142.69,21.8897]
[1723810138226,62.82528,142.77,142.68,10.57]
[1723810138227,0.12549,142.76,142.68,10.57]
[1723810138432,0.25098,142.76,142.68,10.57]
[1723810138658,0.12549,142.75,142.68,10.57]
[1723810139221,0.12549,142.75,142.69,20.0]
[1723810140958,0.12549,142.76,142.7,11.97134806]
[1723810141127,45.0,142.77,142.71,1.40117054]
[1723810141329,52.25478,142.78,142.71,1.40117054]
[1723810141734,45.25098,142.78,142.71,1.40117054]
[1723810142130,52.25478,142.78,142.71,1.40117054]
[1723810142330,52.25478,142.78,142.7,10.57]
[1723810143341,7.0044,142.77,142.7,10.57]
[1723810143554,45.0,142.76,142.7,10.57]
[1723810144344,17.5765,142.73,142.65,32.81742667]
[1723810144559,0.12549,142.7,142.62,21.8953]
[1723810144766,0.12549,142.7,142.62,32.4653]
[1723810144767,52.25868,142.7,142.62,32.4653]
[1723810145061,45.25098,142.7,142.62,32.4653]
[1723810145439,52.25898,142.7,142.62,32.4653]
[1723810145638,0.12549,142.69,142.62,32.4653]
[1723810145847,0.12549,142.68,142.62,21.8953]
[1723810146058,52.13349,142.7,142.62,21.8953]
[1723810146253,45.12549,142.7,142.62,41.8953]
[1723810146455,45.0,142.7,142.62,41.8953]
[1723810146655,45.0,142.7,142.63,26.45]
[1723810146966,45.0,142.7,142.63,46.45]
[1723810147161,45.12549,142.71,142.63,46.45]
[1723810149141,1.21737229,142.7,142.63,46.45]
[1723810150636,1.21737229,142.7,142.64,20.0]
[1723810150837,1.21737229,142.7,142.65,21.40170289]
[1723810151067,1.21737229,142.7,142.65,47.85170289]
[1723810152553,1.21737229,142.7,142.65,46.45]
[1723810152863,1.21737229,142.7,142.65,20.0]
[1723810153052,1.21737229,142.7,142.64,20.0]
[1723810153968,1.21737229,142.7,142.64,40.0]
[1723810154146,1.21737229,142.7,142.64,20.0]
[1723810158356,1.21737229,142.7,142.65,1.40178348]
[1723810158673,1.21737229,142.7,142.64,40.0]
[1723810159076,1.21737229,142.7,142.64,20.0]
[1723810161906,0.12549,142.69,142.63,20.0]
[1723810162104,0.12549,142.69,142.59,92.16818372]
[1723810162398,45.50196,142.69,142.59,92.16818372]
[1723810163481,45.50196,142.69,142.59,112.16818372]
[1723810164107,7.0089,142.68,142.59,92.16818372]
[1723810164404,52.26018,142.67,142.59,92.16818372]
[1723810164576,52.13469,142.67,142.59,92.16818372]
[1723810164796,0.25098,142.66,142.59,92.16818372]
[1723810165491,0.25098,142.66,142.6,20.0]
[1723810166704,0.12549,142.65,142.59,70.46718372]
[1723810166907,0.25098,142.65,142.59,70.46718372]
[1723810167083,0.25098,142.64,142.59,70.46718372]
[1723810167285,0.37647,142.64,142.56,22.7118]
[1723810167481,0.25098,142.63,142.56,22.7118]
[1723810167812,45.25098,142.63,142.56,22.7118]
[1723810168014,0.25098,142.62,142.54,70.4919021]
[1723810168177,7.13759,142.61,142.54,70.4919021]
[1723810168377,52.38917,142.6,142.54,70.4919021]
[1723810168806,45.25098,142.6,142.54,70.4919021]
[1723810168996,45.0,142.6,142.54,70.4919021]
[1723810169586,45.12549,142.61,142.54,70.4919021]
[1723810169808,45.0,142.61,142.55,21.40273505]
[1723810172804,45.0,142.61,142.55,20.0]
[1723810172980,52.26258,142.62,142.55,20.0]
[1723810173710,45.25098,142.62,142.55,20.0]
[1723810175322,0.12549,142.6,142.55,20.0]
[1723810175512,45.25098,142.6,142.55,20.0]
[1723810176085,45.25098,142.6,142.53,20.0]
[1723810176894,0.25098,142.6,142.53,20.0]
[1723810183122,0.25098,142.6,142.53,21.40297042]
[1723810183422,0.25098,142.6,142.53,20.0]
[1723810183629,0.25098,142.6,142.54,1.40291087]
[1723810184703,0.25098,142.6,142.53,20.0]
[1723810185608,26.47,142.62,142.53,20.0]
[1723810186441,26.47,142.62,142.54,20.0]
[1723810186742,1.21819749,142.63,142.54,20.0]
[1723810186743,8.22949749,142.63,142.55,21.40269085]
[1723810187103,45.12549,142.62,142.55,20.0]
[1723810187912,55.71549,142.62,142.55,20.0]
[1723810189110,55.71549,142.62,142.54,20.0]
[1723810190031,55.71549,142.62,142.54,40.0]
[1723810190421,1.21819749,142.63,142.54,40.0]
[1723810190626,11.80819749,142.63,142.54,40.0]
[1723810191548,18.81929749,142.63,142.54,20.0]
[1723810191729,45.0,142.62,142.54,20.0]
[1723810199065,45.0,142.62,142.54,40.0]
[1723810201169,45.0,142.62,142.54,20.0]
[1723810202958,10.71549,142.61,142.54,20.0]
[1723810203279,45.0,142.6,142.55,20.0]
[1723810203485,45.0,142.6,142.53,20.0]
[1723810204259,1.21856114,142.59,142.53,20.0]
[1723810205266,11.80856114,142.59,142.52,21.9956]
[1723810205491,45.0,142.58,142.52,21.9956]
[1723810206492,10.71549,142.57,142.52,21.9956]
[1723810206733,17.6053,142.55,142.49,77.16863784]
[1723810207002,0.12549,142.54,142.49,77.16863784]
[1723810207200,45.25098,142.54,142.49,77.16863784]
[1723810207503,45.25098,142.54,142.49,6.652]
[1723810207797,45.25098,142.54,142.45,20.0]
[1723810207798,10.59,142.53,142.45,42.1023]
[1723810208003,45.0,142.52,142.45,22.1023]
[1723810208871,0.12549,142.51,142.45,22.1023]
[1723810209173,0.25098,142.51,142.45,22.1023]
[1723810210312,0.25098,142.51,142.45,6.3373]
[1723810210473,7.0176,142.5,142.41,21.6299]
[1723810210674,45.12549,142.49,142.41,21.6299]
[1723810210882,0.12549,142.48,142.41,21.6299]
[1723810211084,7.14399,142.48,142.41,21.6299]
[1723810211378,45.0,142.47,142.41,21.6299]
[1723810211795,0.25098,142.46,142.41,21.6299]
[1723810211973,0.25098,142.46,142.38,20.0]
[1723810211974,7.27048,142.46,142.38,20.0]
[1723810212177,0.12549,142.44,142.37,21.6982]
[1723810212383,0.25098,142.44,142.37,21.6982]
[1723810213622,0.12549,142.44,142.37,21.6982]
[1723810213773,62.73559,142.45,142.37,21.6982]
[1723810213981,0.12549,142.42,142.37,21.6982]
[1723810214206,45.0,142.42,142.37,21.6982]
[1723810214509,55.59,142.42,142.35,22.8101]
[1723810214717,55.59,142.42,142.36,1.40468573]
[1723810214880,55.59,142.42,142.35,22.8101]
[1723810215393,10.59,142.4,142.33,0.8453449]
[1723810215713,45.12549,142.39,142.33,0.8453449]
[1723810216309,0.12549,142.38,142.33,0.8453449]
[1723810216981,10.84098,142.38,142.33,0.8453449]
[1723810217181,45.0,142.37,142.33,0.8453449]
[1723810218085,45.25098,142.38,142.33,0.8453449]
[1723810218790,0.12549,142.36,142.33,0.8453449]
[1723810219007,45.37647,142.36,142.33,0.8453449]
[1723810219309,52.40087,142.36,142.33,0.8453449]
[1723810219680,45.37647,142.36,142.33,0.8453449]
[1723810220605,7.0235,142.38,142.33,0.8453449]
[1723810220820,0.12549,142.37,142.33,0.8453449]
[1723810220975,26.69549,142.39,142.33,0.8453449]
[1723810220976,7.023,142.39,142.33,0.8453449]
[1723810221618,7.0234,142.38,142.33,0.8453449]
[1723810222187,45.12549,142.37,142.33,0.8453449]
[1723810224606,1.22010011,142.36,142.33,0.8453449]
[1723810224986,0.12549,142.35,142.33,0.8453449]
[1723810225191,7.40137,142.35,142.33,0.8453449]
[1723810225392,45.12549,142.34,142.33,0.8453449]
[1723810225615,45.25098,142.34,142.33,0.8453449]
[1723810225823,52.40187,142.34,142.33,0.8453449]
[1723810226125,0.12549,142.27,142.21,21.9269]
[1723810226286,7.15449,142.27,142.21,21.9269]
[1723810226594,0.12549,142.25,142.21,21.9269]
[1723810227116,0.25098,142.26,142.21,6.6359]
[1723810227316,0.25098,142.26,142.16,20.0]
[1723810227317,7.15669,142.23,142.16,6.1351]
[1723810227619,45.0,142.22,142.16,6.1351]
[1723810227797,45.12549,142.22,142.16,6.1351]
[1723810227989,0.12549,142.21,142.16,6.1351]
[1723810229504,45.12549,142.22,142.16,6.1351]
[1723810229703,45.0,142.21,142.16,6.1351]
[1723810229912,0.12549,142.22,142.16,6.1351]
[1723810230420,0.12549,142.21,142.13,22.2625]
[1723810230604,45.12549,142.21,142.13,22.2625]
[1723810230807,0.12549,142.2,142.13,22.2625]
[1723810231599,0.25098,142.2,142.13,22.2625]
[1723810231827,0.12549,142.19,142.13,22.2625]
[1723810232032,0.25098,142.2,142.13,22.2625]
[1723810232342,0.25098,142.2,142.14,20.0]
[1723810232835,26.57,142.26,142.15,20.0]
[1723810233020,7.0304,142.24,142.16,20.0]
[1723810233211,7.0308,142.23,142.16,20.0]
[1723810233420,17.574,142.26,142.13,22.2625]
[1723810233714,20.0,142.25,142.14,20.0]
[1723810233921,7.0319,142.21,142.14,20.0]
[1723810234125,0.12549,142.2,142.14,20.0]
[1723810234328,52.40887,142.2,142.14,20.0]
[1723810235158,0.12549,142.19,142.14,20.0]
[1723810235316,0.37647,142.19,142.14,20.0]
[1723810235516,7.53476,142.19,142.13,22.2625]
[1723810235841,52.53476,142.19,142.13,22.2625]
[1723810236335,52.53476,142.19,142.1,23.0715]
[1723810236860,7.15949,142.17,142.06,20.0]
[1723810237050,1.40979019,142.1,142.06,20.0]
[1723810238833,1.40979019,142.1,142.07,20.0]
[1723810239945,1.40979019,142.1,142.08,20.0]
[1723810240160,7.0324,142.2,142.11,20.0]
[1723810240326,7.0318,142.21,142.13,16.2392]
[1723810240721,7.0315,142.22,142.13,16.2392]
[1723810240954,7.0309,142.23,142.13,36.2392]
[1723810241255,15.4304,142.27,142.15,20.0]
[1723810241460,15.4304,142.27,142.16,20.0]
[1723810241754,7.0298,142.25,142.16,20.0]
[1723810242138,7.0295,142.26,142.16,46.57]
[1723810242323,7.0295,142.26,142.17,20.0]
[1723810242747,7.0292,142.27,142.17,20.0]
[1723810242950,7.0292,142.27,142.17,6.6274]
[1723810243254,7.0294,142.26,142.17,6.6274]
[1723810243459,7.0294,142.26,142.17,26.6274]
[1723810244556,7.15449,142.27,142.17,26.6274]
[1723810244850,1.22091899,142.25,142.21,35.6162]
[1723810245355,7.0274,142.3,142.21,35.6162]
[1723810245535,1.22065199,142.24,142.22,20.0]
[1723810245732,26.57,142.33,142.22,20.0]
[1723810245931,1.22060956,142.24,142.22,20.0]
[1723810246157,7.0272,142.31,142.22,20.0]
[1723810246458,1.22059399,142.24,142.22,40.0]
[1723810246638,1.22059399,142.24,142.22,20.0]
[1723810246965,1.22063534,142.25,142.22,20.0]
[1723810250245,7.0252,142.35,142.23,33.13319]
[1723810250552,26.57,142.34,142.23,6.4377]
[1723810250761,7.027,142.31,142.24,20.0]
[1723810250932,26.57,142.34,142.24,20.0]
[1723810251134,7.0265,142.32,142.24,20.0]
[1723810251552,0.12549,142.31,142.24,20.0]
[1723810251756,45.37647,142.31,142.24,20.0]
[1723810252554,7.026,142.33,142.24,20.0]
[1723810252726,45.0,142.32,142.24,20.0]
[1723810254651,45.25098,142.33,142.24,20.0]
[1723810254858,7.0265,142.32,142.24,20.0]
[1723810255038,45.37647,142.31,142.24,20.0]
[1723810257455,45.25098,142.31,142.24,20.0]
[1723810257649,0.12549,142.31,142.24,20.0]
[1723810257854,45.0,142.3,142.24,20.0]
[1723810258049,0.12549,142.31,142.24,20.0]
[1723810258431,35.0967,142.47,142.26,16.1934]
[1723810258432,17.5567,142.4,142.26,16.1934]
[1723810258657,20.0,142.38,142.27,20.0]
[1723810258966,7.026,142.33,142.27,20.0]
[1723810259265,7.026,142.33,142.26,16.1934]
[1723810259639,0.25098,142.32,142.26,16.1934]
[1723810259847,45.25098,142.32,142.26,16.1934]
[1723810260749,45.0,142.31,142.26,16.1934]
[1723810260943,7.27758,142.32,142.26,16.1934]
[1723810261155,0.12549,142.3,142.26,16.1934]
[1723810262075,26.69549,142.3,142.23,6.4377]
[1723810262254,0.12549,142.28,142.23,6.4377]
[1723810262579,7.15389,142.28,142.23,6.4377]
[1723810262744,45.12549,142.27,142.23,6.4377]
[1723810262947,0.12549,142.26,142.23,6.4377]
[1723810263158,45.0,142.27,142.23,6.4377]
[1723810263475,52.15389,142.28,142.18,22.2886]
[1723810263675,0.12549,142.26,142.19,20.0]
[1723810264056,0.12549,142.26,142.19,40.0]
[1723810264461,45.0,142.28,142.19,40.0]
[1723810264849,0.25098,142.27,142.19,40.0]
[1723810265572,0.25098,142.27,142.19,20.0]
[1723810265770,7.27988,142.27,142.18,22.2886]
[1723810265953,45.0,142.26,142.18,22.2886]
[1723810266347,0.12549,142.25,142.18,22.2886]
[1723810266678,7.0317,142.22,142.18,22.2886]
[1723810266890,45.0,142.21,142.18,22.2886]
[1723810267045,45.0,142.21,142.12,22.0858]
[1723810267246,52.40797,142.22,142.12,22.0858]
[1723810267480,0.12549,142.21,142.12,22.0858]
[1723810267647,0.12549,142.2,142.12,22.0858]
[1723810267847,0.25098,142.2,142.12,22.0858]
[1723810268475,45.25098,142.2,142.12,22.0858]
[1723810268687,45.25098,142.2,142.12,42.0858]
[1723810268848,0.25098,142.2,142.12,22.0858]
[1723810269051,7.28338,142.2,142.12,22.0858]
[1723810269268,45.0,142.19,142.12,22.0858]
[1723810269578,0.25098,142.18,142.06,6.464]
[1723810269773,0.12549,142.16,142.07,30.0]
[1723810269949,45.25098,142.16,142.06,6.464]
[1723810270156,0.12549,142.14,142.06,6.464]
[1723810270880,0.25098,142.14,142.06,6.464]
[1723810271076,0.12549,142.12,142.06,6.464]
[1723810272087,0.12549,142.12,142.07,20.0]
[1723810272589,0.25098,142.12,142.07,20.0]
[1723810272887,0.12549,142.11,142.07,20.0]
[1723810273079,0.25098,142.12,142.07,20.0]
[1723810273271,0.25098,142.11,142.07,20.0]
[1723810273474,0.12549,142.11,142.06,6.464]
[1723810273892,0.25098,142.11,142.06,6.464]
[1723810274878,0.25098,142.11,142.05,15.1817]
[1723810275089,0.25098,142.11,142.04,0.8453449]
[1723810275302,45.25098,142.11,142.04,0.8453449]
[1723810276158,45.25098,142.11,142.04,20.8453449]
[1723810276358,45.25098,142.11,142.04,67.4153449]
[1723810276584,45.25098,142.11,142.04,47.4153449]
[1723810277389,0.25098,142.11,142.04,47.4153449]
[1723810278201,18.630002,142.11,142.04,67.4153449]
[1723810278371,18.630002,142.11,142.04,47.4153449]
[1723810278570,18.630002,142.11,142.07,20.0]
[1723810278901,18.630002,142.11,142.04,67.4153449]
[1723810279193,0.12549,142.1,142.04,20.8453449]
[1723810279559,45.12549,142.1,142.04,20.8453449]
[1723810280517,0.12549,142.09,142.04,0.8453449]
[1723810280729,0.37647,142.09,142.04,0.8453449]
[1723810280888,0.12549,142.08,142.04,0.8453449]
[1723810281084,0.12549,142.07,142.04,0.8453449]
[1723810281306,45.25098,142.07,142.04,0.8453449]
[1723810281501,0.12549,142.06,142.04,0.8453449]
[1723810281704,0.25098,142.06,142.04,0.8453449]
[1723810281877,0.12549,142.06,142.04,0.8453449]
[1723810282083,0.25098,142.06,142.04,0.8453449]
[1723810282787,0.12549,142.05,142.04,0.8453449]
[1723810282988,0.37647,142.05,142.04,0.8453449]
[1723810283193,0.50196,142.05,142.04,0.8453449]
[1723810283397,7.54166,142.05,142.04,0.8453449]
[1723810283635,52.54166,142.05,142.04,0.8453449]
[1723810285199,45.0,142.05,142.04,0.8453449]
[1723810286730,45.37647,142.05,142.04,0.8453449]
[1723810287321,45.50196,142.05,142.04,0.8453449]
[1723810288228,64.131962,142.05,142.04,0.8453449]
[1723810289094,64.006472,142.05,142.04,0.8453449]
[1723810289388,18.630002,142.05,142.04,0.8453449]
[1723810291308,63.630002,142.05,142.04,0.8453449]
[1723810291603,18.630002,142.05,142.04,0.8453449]
[1723810293126,63.630002,142.05,142.04,0.8453449]
[1723810293907,63.755492,142.05,142.04,0.8453449]
[1723810296430,63.755492,142.05,142.04,0.8453449]
[1723810297313,80.503382,142.05,142.04,0.8453449]
[1723810297529,80.754362,142.05,142.04,0.8453449]
[1723810298015,64.131962,142.05,142.04,0.8453449]
[1723810299443,18.630002,142.05,142.04,0.8453449]
[1723810300615,18.880982,142.05,142.04,0.8453449]
[1723810300822,64.131962,142.05,142.04,0.8453449]
[1723810302440,71.171662,142.05,142.04,0.8453449]
[1723810305721,71.171662,142.05,142.0,0.03003]
[1723810306025,7.41687,142.04,142.0,0.03003]
[1723810306240,7.0408,142.03,142.0,0.03003]
[1723810306416,7.41687,142.04,142.0,0.03003]
[1723810306825,0.12549,142.02,142.0,0.03003]
[1723810307044,0.12549,142.02,141.96,3.81683]
[1723810307239,7.16679,142.02,141.96,3.81683]
[1723810307418,0.12549,142.01,141.96,3.81683]
[1723810308051,45.12549,142.01,141.96,3.81683]
[1723810308252,0.25098,142.0,141.95,15.7127]
[1723810308420,45.12549,142.01,141.95,15.7127]
[1723810308620,0.12549,142.0,141.95,15.7127]
[1723810308917,45.12549,142.01,141.95,15.7127]
[1723810309116,45.0,142.02,141.95,15.7127]
[1723810309347,0.12549,142.01,141.95,15.7127]
[1723810309646,0.25098,142.01,141.95,15.7127]
[1723810309847,0.12549,142.0,141.95,15.7127]
[1723810310235,45.0,142.02,141.95,22.1171]
[1723810310740,52.0412,142.02,141.95,22.1171]
[1723810311128,0.12549,142.01,141.95,22.1171]
[1723810311333,0.37647,142.01,141.95,22.1171]
[1723810313057,7.41827,142.01,141.95,22.1171]
[1723810313358,0.12549,141.99,141.95,22.1171]
[1723810313535,45.0,142.0,141.95,22.1171]
[1723810314836,0.12549,141.99,141.95,22.1171]
[1723810315038,0.25098,141.99,141.95,22.1171]
[1723810315446,45.0,142.0,141.95,22.1171]
[1723810316038,0.12549,141.99,141.95,22.1171]
[1723810316261,0.25098,141.99,141.95,22.1171]
[1723810316558,0.25098,141.99,141.91,22.8668]
[1723810316764,7.16929,141.97,141.91,22.8668]
[1723810316949,45.12549,141.96,141.91,22.8668]
[1723810317559,0.12549,141.95,141.91,16.6025]
[1723810317730,7.29578,141.95,141.9,0.8453449]
[1723810317941,52.17079,141.94,141.9,0.8453449]
[1723810318260,45.0,141.93,141.9,0.8453449]
[1723810318443,0.25098,141.92,141.9,0.8453449]
[1723810318769,0.12549,141.92,141.9,0.8453449]
[1723810318965,0.25098,141.92,141.9,0.8453449]
[1723810319172,45.25098,141.92,141.9,0.8453449]
[1723810320069,52.29718,141.92,141.9,0.8453449]
[1723810320242,45.12549,141.92,141.9,0.8453449]
[1723810320448,45.0,141.93,141.9,0.8453449]
[1723810320667,45.25098,141.94,141.9,0.8453449]
[1723810321278,18.630002,141.95,141.9,27.5453449]
[1723810321570,7.0435,141.98,141.9,0.8453449]
[1723810321943,7.0428,141.99,141.9,0.8453449]
[1723810322364,7.0423,142.0,141.91,46.7]
[1723810322541,26.7,142.02,141.9,0.8453449]
[1723810323139,26.7,142.0,141.9,0.8453449]
[1723810323639,0.25098,141.99,141.9,0.8453449]
[1723810323966,7.0457,141.93,141.9,0.8453449]
[1723810324173,0.12549,141.91,141.9,0.8453449]
[1723810324345,7.17219,141.91,141.9,0.8453449]
[1723810324548,52.42317,141.91,141.9,0.8453449]
[1723810324864,52.17219,141.91,141.9,0.8453449]
[1723810325284,52.29768,141.91,141.9,0.8453449]
[1723810326074,52.54866,141.91,141.9,0.8453449]
[1723810326375,72.54866,141.91,141.9,0.8453449]
[1723810327248,52.17219,141.91,141.9,0.8453449]
[1723810327447,45.12549,141.91,141.83,127.31201644]
[1723810327777,7.29828,141.9,141.83,127.31201644]
[1723810327958,0.25098,141.9,141.83,127.31201644]
[1723810328143,26.95098,141.9,141.83,127.31201644]
[1723810328343,0.12549,141.86,141.83,127.31201644]
[1723810328564,7.30038,141.86,141.83,127.31201644]
[1723810328751,7.0497,141.85,141.83,127.31201644]
[1723810328949,0.12549,141.84,141.83,127.31201644]
[1723810329373,7.30108,141.84,141.83,127.31201644]
[1723810329885,52.30108,141.84,141.83,127.31201644]